fUST/lending_fUST_20250627
["ID","MTS","AMOUNT","RATE_DAILY","PERIOD"]
[367932775,1750971043872,-460.0,0.00021643,2]
[367932777,1750971043883,-2584.71,0.00021643,2]
[367932779,1750971043892,-460.0,0.00021643,2]
[367932781,1750971043901,-460.0,0.00021643,2]
[367932783,1750971043910,-460.0,0.00021643,2]
[367932785,1750971043920,-503.77657955,0.00021643,2]
[367932787,1750971043929,-460.0,0.00021643,2]
[367932789,1750971043938,-460.0,0.00021643,2]
[367932791,1750971043947,-460.0,0.00021643,2]
[367932793,1750971043957,-460.0,0.00021643,2]
[367932795,1750971043966,-460.0,0.00021643,2]
[367932797,1750971043975,-460.0,0.00021643,2]
[367932799,1750971043984,-460.0,0.00021643,2]
[367932801,1750971043993,-460.0,0.00021643,2]
[367932803,1750971044002,-463.41855818,0.00021643,2]
[367932805,1750971044012,-1227.0,0.00021643,2]
[367932806,1750971044021,-465.41898829,0.00021643,2]
[367932808,1750971044030,-460.0,0.00021643,2]
[367932810,1750971044040,-460.0,0.00021643,2]
[367932812,1750971044049,-460.0,0.00021643,2]
[367932814,1750971044059,-410.44351872,0.00021643,2]
[367932816,1750971044068,-460.0,0.00021643,2]
[367932818,1750971044077,-519.10994996,0.00021643,2]
[367932820,1750971044086,-460.0,0.00021643,2]
[367932822,1750971044095,-500.0,0.00021643,2]
[367932824,1750971044104,-460.0,0.00021643,2]
[367932826,1750971044114,-460.76791442,0.00021643,2]
[367932828,1750971044123,-3712.99,0.00021643,2]
[367932830,1750971044132,-460.0,0.00021643,2]
[367932832,1750971044141,-460.0,0.00021643,2]
[367932834,1750971044150,-460.0,0.00021643,2]
[367932836,1750971044160,-460.0,0.00021643,2]
[367932838,1750971044169,-460.0,0.00021643,2]
[367932840,1750971044179,-460.0,0.00021643,2]
[367932842,1750971044188,-530.21,0.00021643,2]
[367932844,1750971044197,-314.52947932,0.00021643,2]
[367932846,1750971044207,-821.72,0.00021643,2]
[367932848,1750971044216,-460.0,0.00021643,2]
[367932850,1750971044226,-505.06766196,0.00021643,2]
[367932852,1750971044235,-460.0,0.00021643,2]
[367932854,1750971044244,-591.03,0.00021643,2]
[367932856,1750971044254,-460.0,0.00021643,2]
[367932858,1750971044264,-460.0,0.00021643,2]
[367932860,1750971044273,-700.18,0.00021643,2]
[367932861,1750971044282,-460.0,0.00021643,2]
[367932864,1750971044292,-638.43,0.00021643,2]
[367932865,1750971044301,-552.38,0.00021643,2]
[367932867,1750971044311,-460.0,0.00021643,2]
[367932869,1750971044320,-555.6,0.00021643,2]
[367932871,1750971044330,-460.0,0.00021643,2]
[367932873,1750971044340,-460.0,0.00021643,2]
[367932876,1750971044349,-460.0,0.00021643,2]
[367932878,1750971044359,-460.0,0.00021643,2]
[367932880,1750971044368,-466.99,0.00021643,2]
[367932881,1750971044378,-3649.9,0.00021643,2]
[367932883,1750971044388,-3649.9,0.00021643,2]
[367932885,1750971044397,-3649.9,0.00021643,2]
[367932887,1750971044407,-460.0,0.00021643,2]
[367932889,1750971044416,-460.0,0.00021643,2]
[367932891,1750971044426,-3649.9,0.00021643,2]
[367932893,1750971044436,-548.98,0.00021643,2]
[367932895,1750971044446,-3649.9,0.00021643,2]
[367932897,1750971044456,-3649.9,0.00021643,2]
[367932899,1750971044466,-460.0,0.00021643,2]
[367932901,1750971044475,-460.0,0.00021643,2]
[367932903,1750971044485,-841.42,0.00021643,2]
[367932905,1750971044495,-3649.9,0.00021643,2]
[367932907,1750971044504,-745.14,0.00021643,2]
[367932909,1750971044514,-3649.9,0.00021643,2]
[367932911,1750971044523,-3649.9,0.00021643,2]
[367932913,1750971044532,-3649.9,0.00021643,2]
[367932915,1750971044542,-3649.9,0.00021643,2]
[367932917,1750971044551,-3649.9,0.00021643,2]
[367932919,1750971044560,-3649.9,0.00021643,2]
[367932921,1750971044569,-460.0,0.00021643,2]
[367932923,1750971044578,-3649.9,0.00021643,2]
[367932925,1750971044587,-460.0,0.00021643,2]
[367932927,1750971044596,-3649.9,0.00021643,2]
[367932929,1750971044606,-3649.9,0.00021643,2]
[367932931,1750971044615,-460.0,0.00021643,2]
[367932933,1750971044624,-3649.9,0.00021643,2]
[367932935,1750971044633,-3649.9,0.00021643,2]
[367932937,1750971044642,-460.0,0.00021643,2]
[367932939,1750971044651,-3649.9,0.00021643,2]
[367932941,1750971044661,-3649.9,0.00021643,2]
[367932943,1750971044670,-3649.9,0.00021643,2]
[367932945,1750971044680,-401.20428764,0.00021643,2]
[367932947,1750971044689,-3649.9,0.00021643,2]
[367932948,1750971044698,-3649.9,0.00021643,2]
[367932950,1750971044707,-3649.94618838,0.00021643,2]
[367932952,1750971044717,-1102.37,0.00021643,2]
[367932954,1750971044726,-557.75,0.00021643,2]
[367932956,1750971044735,-598.77,0.00021643,2]
[367932958,1750971044745,-460.0,0.00021643,2]
[367932960,1750971044754,-460.0,0.00021643,2]
[367932962,1750971044764,-473.94,0.00021643,2]
[367932964,1750971044773,-460.0,0.00021643,2]
[367932967,1750971044785,-576.86,0.00021643,2]
[367932968,1750971044795,-460.0,0.00021643,2]
[367932971,1750971044804,-1680.11,0.00021643,2]
[367932972,1750971044814,-460.0,0.00021643,2]
[367932974,1750971044827,-460.0,0.00021643,2]
[367932976,1750971044835,-460.0,0.00021643,2]
[367932978,1750971044845,-460.0,0.00021643,2]
[367932980,1750971044856,-630.96,0.00021643,2]
[367932982,1750971044865,-460.0,0.00021643,2]
[367932984,1750971044875,-460.0,0.00021643,2]
[367932987,1750971044884,-757.87,0.00021643,2]
[367932989,1750971044894,-460.0,0.00021643,2]
[367932990,1750971044903,-460.0,0.00021643,2]
[367932992,1750971044912,-460.0,0.00021643,2]
[367932994,1750971044922,-783.9,0.00021643,2]
[367932996,1750971044931,-332.28768633,0.00021643,2]
[367932998,1750971044941,-460.0,0.00021643,2]
[367933001,1750971044950,-460.0,0.00021643,2]
[367933003,1750971044960,-460.0,0.00021643,2]
[367933004,1750971044969,-460.0,0.00021643,2]
[367933006,1750971044978,-460.0,0.00021643,2]
[367933008,1750971044988,-460.0,0.00021643,2]
[367933011,1750971044998,-460.0,0.00021643,2]
[367933013,1750971045008,-460.0,0.00021643,2]
[367933014,1750971045016,-1565.92,0.00021643,2]
[367933017,1750971045025,-460.0,0.00021643,2]
[367933020,1750971045035,-460.0,0.00021643,2]
[367933023,1750971045046,-460.0,0.00021643,2]
[367933025,1750971045055,-460.59274665,0.00021643,2]
[367933027,1750971045064,-460.0,0.00021643,2]
[367933029,1750971045073,-460.0,0.00021643,2]
[367933031,1750971045083,-460.0,0.00021643,2]
[367933033,1750971045092,-460.0,0.00021643,2]
[367933035,1750971045101,-3635.72,0.00021643,2]
[367933037,1750971045111,-484.91,0.00021643,2]
[367933039,1750971045120,-460.0,0.00021643,2]
[367933041,1750971045130,-460.0,0.00021643,2]
[367933043,1750971045140,-460.0,0.00021643,2]
[367933045,1750971045149,-460.0,0.00021643,2]
[367933047,1750971045159,-460.0,0.00021643,2]
[367933049,1750971045168,-460.0,0.00021643,2]
[367933051,1750971045178,-460.0,0.00021643,2]
[367933053,1750971045187,-662.72,0.00021643,2]
[367933055,1750971045197,-461.06399034,0.00021643,2]
[367933057,1750971045206,-460.0,0.00021643,2]
[367933059,1750971045216,-2323.19,0.00021643,2]
[367933061,1750971045225,-5969.38,0.00021643,2]
[367933063,1750971045235,-461.17561917,0.00021643,2]
[367933065,1750971045244,-155.0,0.00021643,2]
[367933067,1750971045253,-460.0,0.00021643,2]
[367933069,1750971045263,-365.83363809,0.00021643,2]
[367933071,1750971045273,-460.0,0.00021643,2]
[367933073,1750971045282,-744.13,0.00021643,2]
[367933075,1750971045291,-837.95,0.00021643,2]
[367933077,1750971045300,-460.0,0.00021643,2]
[367933079,1750971045309,-1022.11,0.00021643,2]
[367933081,1750971045319,-460.0,0.00021643,2]
[367933083,1750971045329,-479.54,0.00021643,2]
[367933085,1750971045338,-366.70889909,0.00021643,2]
[367933087,1750971045348,-460.0,0.00021643,2]
[367933089,1750971045357,-830.44,0.00021643,2]
[367933091,1750971045367,-460.0,0.00021643,2]
[367933093,1750971045377,-460.0,0.00021643,2]
[367933095,1750971045386,-854.76,0.00021643,2]
[367933097,1750971045395,-460.0,0.00021643,2]
[367933099,1750971045405,-460.0,0.00021643,2]
[367933101,1750971045414,-460.0,0.00021643,2]
[367933103,1750971045424,-1068.49,0.00021643,2]
[367933105,1750971045432,-460.0,0.00021643,2]
[367933107,1750971045441,-460.0,0.00021643,2]
[367933109,1750971045450,-460.0,0.00021643,2]
[367933111,1750971045460,-544.96,0.00021643,2]
[367933113,1750971045469,-264.95407513,0.00021643,2]
[367933115,1750971045479,-519.86,0.00021643,2]
[367933117,1750971045488,-460.0,0.00021643,2]
[367933118,1750971045496,-1641.5,0.00021643,2]
[367933120,1750971045506,-819.46,0.00021643,2]
[367933122,1750971045515,-460.0,0.00021643,2]
[367933124,1750971045525,-460.0,0.00021643,2]
[367933126,1750971045534,-460.0,0.00021643,2]
[367933128,1750971045544,-792.7,0.00021643,2]
[367933129,1750971045552,-640.23,0.00021643,2]
[367933130,1750971045562,-460.0,0.00021643,2]
[367933131,1750971045572,-599.41327932,0.00021643,2]
[367933132,1750971045581,-848.29,0.00021643,2]
[367933133,1750971045590,-460.0,0.00021643,2]
[367933134,1750971045599,-1450.78,0.00021643,2]
[367933135,1750971045608,-460.0,0.00021643,2]
[367933136,1750971045617,-460.0,0.00021643,2]
[367933138,1750971045627,-460.0,0.00021643,2]
[367933140,1750971045636,-460.0,0.00021643,2]
[367933142,1750971045645,-460.0,0.00021643,2]
[367933144,1750971045654,-460.0,0.00021643,2]
[367933146,1750971045663,-460.0,0.00021643,2]
[367933148,1750971045673,-461.21985364,0.00021643,2]
[367933150,1750971045682,-460.0,0.00021643,2]
[367933152,1750971045691,-460.0,0.00021643,2]
[367933154,1750971045700,-460.0,0.00021643,2]
[367933156,1750971045709,-460.0,0.00021643,2]
[367933158,1750971045719,-460.0,0.00021643,2]
[367933160,1750971045728,-200.0,0.00021643,10]
[367933162,1750971045737,-460.0,0.00021643,2]
[367933164,1750971045747,-776.78,0.00021643,2]
[367933166,1750971045758,-460.0,0.00021643,2]
[367933168,1750971045767,-460.0,0.00021643,2]
[367933170,1750971045777,-460.0,0.00021643,2]
[367933172,1750971045788,-460.0,0.00021643,2]
[367933174,1750971045798,-484.67166152,0.00021643,2]
[367933176,1750971045807,-479.8950424,0.00021643,2]
[367933178,1750971045817,-460.0,0.00021643,2]
[367933181,1750971045827,-460.0,0.00021643,2]
[367933184,1750971045836,-460.0,0.00021643,2]
[367933187,1750971045848,-490.22723709,0.00021643,2]
[367933190,1750971045857,-2437.1,0.00021643,2]
[367933193,1750971045867,-460.0,0.00021643,2]
[367933196,1750971045876,-460.0,0.00021643,2]
[367933199,1750971045885,-460.0,0.00021643,2]
[367933202,1750971045895,-460.0,0.00021643,2]
[367933205,1750971045904,-460.0,0.00021643,2]
[367933208,1750971045913,-460.0,0.00021643,2]
[367933211,1750971045923,-500.0,0.00021643,2]
[367933214,1750971045932,-500.0,0.00021643,2]
[367933217,1750971045941,-460.0,0.00021643,2]
[367933220,1750971045951,-500.0,0.00021643,2]
[367933223,1750971045960,-460.0,0.00021643,2]
[367933226,1750971045969,-3541.0,0.00021644,2]
[367933229,1750971045979,-800.0,0.00021649,2]
[367933232,1750971045989,-500.0,0.00021673,2]
[367933235,1750971045998,-500.0,0.00021673,2]
[367933238,1750971046007,-500.0,0.00021673,2]
[367933241,1750971046016,-581.33748376,0.00021673,2]
[367933245,1750971046025,-500.0,0.00021673,2]
[367933248,1750971046034,-500.0,0.00021673,2]
[367933251,1750971046043,-500.0,0.00021673,2]
[367933254,1750971046052,-500.0,0.00021673,2]
[367933257,1750971046061,-500.0,0.00021673,2]
[367933260,1750971046071,-500.0,0.00021673,2]
[367933263,1750971046080,-256.20095805,0.00021673,2]
[367933265,1750971046089,-451.60165939,0.00021673,2]
[367933267,1750971046098,-500.0,0.00021673,2]
[367933269,1750971046108,-500.0,0.00021673,2]
[367933271,1750971046117,-500.0,0.00021673,2]
[367933273,1750971046126,-500.0,0.00021673,2]
[367933275,1750971046135,-450.03615033,0.00021673,2]
[367933277,1750971046144,-500.0,0.00021673,2]
[367933279,1750971046153,-500.0,0.00021673,2]
[367933281,1750971046163,-586.08574951,0.00021673,2]
[367933297,1750971046296,-500.0,0.00021673,2]
[367933299,1750971046306,-500.0,0.00021673,2]
[367933301,1750971046316,-500.0,0.00021673,2]
[367933303,1750971046325,-500.0,0.00021673,2]
[367933305,1750971046334,-500.0,0.00021673,2]
[367933307,1750971046344,-640.6587808,0.00021673,2]
[367933309,1750971046353,-500.0,0.00021673,2]
[367933311,1750971046362,-500.0,0.00021673,2]
[367933313,1750971046372,-500.0,0.00021673,2]
[367933315,1750971046381,-500.0,0.00021673,2]
[367933317,1750971046390,-353.80032943,0.00021673,2]
[367933319,1750971046400,-500.0,0.00021673,2]
[367933321,1750971046409,-500.0,0.00021673,2]
[367933323,1750971046419,-500.0,0.00021673,2]
[367933325,1750971046429,-314.3743946,0.00021673,2]
[367933327,1750971046438,-500.0,0.00021673,2]
[367933329,1750971046447,-500.0,0.00021673,2]
[367933331,1750971046456,-654.0,0.00021688,2]
[367933333,1750971046466,-800.0,0.00021767,2]
[367933335,1750971046475,-168.0,0.00021768,2]
[367933337,1750971046484,-127742.60349665,0.0002178,2]
[367933339,1750971046493,-151.0,0.0002178,2]
[367933341,1750971046503,-189.977727,0.0002178,2]
[367933343,1750971046512,-151.393314,0.0002178,2]
[367933345,1750971046521,-1721.010829,0.0002178,5]
[367933347,1750971046531,-151.0,0.0002178,2]
[367933349,1750971046540,-151.0,0.0002178,2]
[367933351,1750971046549,-151.0,0.0002178,2]
[367933353,1750971046558,-151.0,0.0002178,2]
[367933355,1750971046567,-151.0,0.0002178,2]
[367933357,1750971046577,-151.0,0.0002178,2]
[367933359,1750971046586,-279.677045,0.0002178,2]
[367933361,1750971046595,-279.677045,0.0002178,2]
[367933363,1750971046604,-151.0,0.0002178,2]
[367933365,1750971046613,-151.0,0.0002178,2]
[367933367,1750971046622,-151.0,0.0002178,2]
[367933369,1750971046631,-151.0,0.0002178,2]
[367933371,1750971046641,-151.0,0.0002178,2]
[367933373,1750971046650,-151.0,0.0002178,2]
[367933375,1750971046660,-1165.39402412,0.00021789,20]
[367933377,1750971046669,-1000.0,0.000218,5]
[367933379,1750971046681,-640.0,0.000218,2]
[367933381,1750971046690,-1000.0,0.0002182,5]
[367933383,1750971046699,-159.2154015,0.00021836,2]
[367933385,1750971046708,-575.0264769,0.00021836,2]
[367933387,1750971046717,-159.2154015,0.00021836,2]
[367933389,1750971046727,-575.0264769,0.00021836,2]
[367933391,1750971046736,-575.0264769,0.00021836,2]
[367933393,1750971046748,-159.2154015,0.00021836,2]
[367933395,1750971046757,-159.2154015,0.00021836,2]
[367933397,1750971046766,-575.0264769,0.00021836,2]
[367933399,1750971046775,-158.984762,0.00021836,2]
[367933401,1750971046790,-575.0264769,0.00021836,2]
[367933403,1750971046799,-1151.4253324,0.00021836,2]
[367933405,1750971046808,-1000.0,0.0002184,5]
[367933407,1750971046817,-200.0,0.0002186,4]
[367933409,1750971046828,-1000.0,0.0002186,5]
[367933411,1750971046839,-800.0,0.00021876,2]
[367933413,1750971046848,-1000.0,0.0002188,5]
[367933416,1750971046859,-2506.8,0.000219,2]
[367933418,1750971046869,-151.0,0.000219,3]
[367933420,1750971046878,-151.0,0.000219,4]
[367933422,1750971046888,-1000.0,0.000219,5]
[367933424,1750971046896,-6764.50678833,0.000219,2]
[367933425,1750971046905,-562.331171,0.000219,6]
[367933427,1750971046915,-500.0,0.00021916,2]
[367933429,1750971046924,-439.13107274,0.00021916,2]
[367933431,1750971046934,-558.27716034,0.00021916,2]
[367933433,1750971046943,-151.0,0.00021917,2]
[367933435,1750971046952,-151.0,0.00021917,2]
[367933437,1750971046961,-151.0,0.00021917,2]
[367933439,1750971046971,-244.81484,0.00021917,2]
[367933441,1750971046981,-151.0,0.00021917,2]
[367933443,1750971046990,-333.57905693,0.00021917,2]
[367933445,1750971047000,-460.0,0.00021917,2]
[367933447,1750971047009,-460.0,0.00021917,2]
[367933449,1750971047019,-460.0,0.00021917,2]
[367933451,1750971047028,-460.0,0.00021917,2]
[367933453,1750971047036,-151.0,0.00021917,2]
[367933455,1750971047047,-460.0,0.00021917,2]
[367933457,1750971047056,-460.0,0.00021917,2]
[367933459,1750971047066,-151.0,0.00021917,2]
[367933461,1750971047075,-460.0,0.00021917,2]
[367933463,1750971047085,-151.0,0.00021917,2]
[367933465,1750971047094,-384.7206075,0.00021917,2]
[367933467,1750971047104,-460.0,0.00021917,2]
[367933469,1750971047114,-151.0,0.00021917,2]
[367933471,1750971047123,-441.22791932,0.00021917,2]
[367933473,1750971047132,-1011.8219454,0.00021917,2]
[367933475,1750971047141,-460.0,0.00021917,2]
[367933477,1750971047151,-460.0,0.00021917,2]
[367933479,1750971047160,-464.93385656,0.00021917,2]
[367933481,1750971047169,-460.0,0.00021917,2]
[367933482,1750971047179,-460.0,0.00021917,2]
[367933484,1750971047188,-460.0,0.00021917,2]
[367933486,1750971047198,-433.72246233,0.00021917,2]
[367933488,1750971047207,-460.0,0.00021917,2]
[367933490,1750971047216,-460.0,0.00021917,2]
[367933492,1750971047225,-460.0,0.00021917,2]
[367933494,1750971047235,-151.0,0.00021917,2]
[367933496,1750971047244,-460.0,0.00021917,2]
[367933498,1750971047254,-460.0,0.00021917,2]
[367933500,1750971047263,-460.0,0.00021917,2]
[367933502,1750971047272,-460.0,0.00021917,2]
[367933504,1750971047282,-460.0,0.00021917,2]
[367933506,1750971047291,-460.0,0.00021917,2]
[367933508,1750971047300,-460.0,0.00021917,2]
[367933510,1750971047310,-434.79717107,0.00021917,2]
[367933512,1750971047319,-460.0,0.00021917,2]
[367933514,1750971047328,-460.0,0.00021917,2]
[367933516,1750971047337,-460.0,0.00021917,2]
[367933518,1750971047346,-460.0,0.00021917,2]
[367933520,1750971047355,-151.0,0.00021917,2]
[367933522,1750971047364,-460.0,0.00021917,2]
[367933524,1750971047374,-407.72008457,0.00021917,2]
[367933526,1750971047383,-460.0,0.00021917,2]
[367933528,1750971047392,-460.0,0.00021917,2]
[367933530,1750971047402,-537.6784803,0.00021917,2]
[367933532,1750971047411,-483.23,0.00021917,2]
[367933534,1750971047420,-460.0,0.00021917,2]
[367933536,1750971047431,-460.0,0.00021917,2]
[367933537,1750971047439,-460.0,0.00021917,2]
[367933539,1750971047448,-460.0,0.00021917,2]
[367933541,1750971047458,-152.01700912,0.00021917,2]
[367933543,1750971047467,-460.0,0.00021917,2]
[367933545,1750971047476,-460.0,0.00021917,2]
[367933547,1750971047485,-460.0,0.00021917,2]
[367933549,1750971047494,-460.0,0.00021917,2]
[367933551,1750971047504,-460.0,0.00021917,2]
[367933553,1750971047514,-460.0,0.00021917,2]
[367933555,1750971047523,-151.0,0.00021917,2]
[367933557,1750971047533,-305.94169269,0.00021917,2]
[367933559,1750971047542,-403.58674974,0.00021917,2]
[367933561,1750971047552,-460.0,0.00021917,2]
[367933563,1750971047561,-151.0,0.00021917,2]
[367933565,1750971047570,-460.0,0.00021917,2]
[367933567,1750971047580,-460.0,0.00021917,2]
[367933569,1750971047589,-460.0,0.00021917,2]
[367933571,1750971047598,-460.0,0.00021917,2]
[367933573,1750971047607,-460.0,0.00021917,2]
[367933575,1750971047616,-460.0,0.00021917,2]
[367933577,1750971047625,-460.0,0.00021917,2]
[367933579,1750971047634,-460.0,0.00021917,2]
[367933581,1750971047644,-460.0,0.00021917,2]
[367933583,1750971047653,-460.0,0.00021917,2]
[367933585,1750971047662,-460.0,0.00021917,2]
[367933587,1750971047671,-152.45533417,0.00021917,2]
[367933589,1750971047681,-460.0,0.00021917,2]
[367933591,1750971047690,-460.0,0.00021917,2]
[367933593,1750971047699,-460.0,0.00021917,2]
[367933595,1750971047707,-641.55,0.00021917,2]
[367933597,1750971047717,-460.0,0.00021917,2]
[367933598,1750971047726,-460.0,0.00021917,2]
[367933600,1750971047735,-151.0,0.00021917,2]
[367933602,1750971047744,-460.0,0.00021917,2]
[367933604,1750971047753,-460.0,0.00021917,2]
[367933606,1750971047762,-333.33982744,0.00021917,2]
[367933608,1750971047772,-460.0,0.00021917,2]
[367933610,1750971047785,-460.0,0.00021917,2]
[367933612,1750971047794,-460.0,0.00021917,2]
[367933614,1750971047804,-460.0,0.00021917,2]
[367933616,1750971047813,-460.0,0.00021917,2]
[367933618,1750971047823,-151.0,0.00021917,2]
[367933620,1750971047833,-581.385375,0.00021917,2]
[367933622,1750971047842,-376.4716147,0.00021917,2]
[367933624,1750971047851,-460.0,0.00021917,2]
[367933625,1750971047860,-151.0,0.00021917,2]
[367933627,1750971047870,-460.0,0.00021917,2]
[367933630,1750971047879,-460.0,0.00021917,2]
[367933631,1750971047888,-151.0,0.00021917,2]
[367933633,1750971047898,-460.0,0.00021917,2]
[367933635,1750971047907,-537.50040917,0.00021917,2]
[367933637,1750971047916,-333.695662,0.00021917,2]
[367933639,1750971047927,-460.0,0.00021917,2]
[367933641,1750971047935,-333.695662,0.00021917,2]
[367933643,1750971047945,-295.99655748,0.00021917,2]
[367933645,1750971047954,-1054.75,0.00021917,2]
[367933647,1750971047963,-460.0,0.00021917,2]
[367933649,1750971047972,-460.0,0.00021917,2]
[367933651,1750971047981,-466.21013475,0.00021917,2]
[367933653,1750971047990,-460.0,0.00021917,2]
[367933655,1750971048000,-460.0,0.00021917,2]
[367933657,1750971048009,-460.0,0.00021917,2]
[367933659,1750971048018,-601.94850018,0.00021917,2]
[367933661,1750971048027,-460.0,0.00021917,2]
[367933662,1750971048036,-151.0,0.00021917,2]
[367933664,1750971048045,-155.83589999,0.00021917,2]
[367933666,1750971048054,-151.0,0.00021917,2]
[367933668,1750971048064,-2766.369972,0.00021917,2]
[367933670,1750971048073,-456.76350392,0.00021917,2]
[367933672,1750971048082,-372.74742083,0.00021917,2]
[367933674,1750971048091,-460.0,0.00021917,2]
[367933676,1750971048101,-460.0,0.00021917,2]
[367933678,1750971048110,-460.0,0.00021917,2]
[367933680,1750971048119,-2766.369972,0.00021917,2]
[367933682,1750971048128,-658.51,0.00021917,2]
[367933684,1750971048138,-430.0,0.00021917,2]
[367933686,1750971048147,-460.0,0.00021917,2]
[367933688,1750971048156,-460.0,0.00021917,2]
[367933690,1750971048165,-460.0,0.00021917,2]
[367933692,1750971048174,-460.0,0.00021917,2]
[367933694,1750971048184,-460.0,0.00021917,2]
[367933696,1750971048193,-817.38,0.00021917,2]
[367933698,1750971048202,-460.0,0.00021917,2]
[367933700,1750971048212,-224.74916,0.00021917,2]
[367933701,1750971048221,-460.0,0.00021917,2]
[367933703,1750971048230,-460.0,0.00021917,2]
[367933705,1750971048240,-460.0,0.00021917,2]
[367933707,1750971048248,-460.0,0.00021917,2]
[367933709,1750971048258,-511.34928136,0.00021917,2]
[367933711,1750971048267,-151.0,0.00021917,2]
[367933713,1750971048277,-460.0,0.00021917,2]
[367933715,1750971048287,-298.22835983,0.00021917,2]
[367933717,1750971048297,-460.0,0.00021917,2]
[367933719,1750971048306,-171.22874577,0.00021917,2]
[367933721,1750971048317,-402.5933611,0.00021917,2]
[367933723,1750971048326,-460.0,0.00021917,2]
[367933725,1750971048336,-460.0,0.00021917,2]
[367933727,1750971048346,-460.0,0.00021917,2]
[367933729,1750971048356,-1326.25,0.00021917,2]
[367933731,1750971048366,-460.0,0.00021917,2]
[367933733,1750971048376,-460.0,0.00021917,2]
[367933735,1750971048386,-518.32,0.00021917,2]
[367933737,1750971048395,-460.0,0.00021917,2]
[367933739,1750971048405,-460.0,0.00021917,2]
[367933740,1750971048414,-460.0,0.00021917,2]
[367933742,1750971048423,-460.0,0.00021917,2]
[367933744,1750971048433,-336.1600341,0.00021917,2]
[367933746,1750971048443,-659.97,0.00021917,2]
[367933748,1750971048453,-460.0,0.00021917,2]
[367933751,1750971048463,-460.0,0.00021917,2]
[367933752,1750971048472,-460.0,0.00021917,2]
[367933754,1750971048482,-460.0,0.00021917,2]
[367933756,1750971048491,-554.01,0.00021917,2]
[367933758,1750971048500,-460.0,0.00021917,2]
[367933760,1750971048510,-463.39305521,0.00021917,2]
[367933762,1750971048519,-460.0,0.00021917,2]
[367933764,1750971048528,-460.0,0.00021917,2]
[367933766,1750971048537,-460.0,0.00021917,2]
[367933768,1750971048547,-460.0,0.00021917,2]
[367933770,1750971048556,-460.0,0.00021917,2]
[367933772,1750971048566,-460.0,0.00021917,2]
[367933774,1750971048575,-460.0,0.00021917,2]
[367933776,1750971048585,-460.0,0.00021917,2]
[367933778,1750971048594,-460.0,0.00021917,2]
[367933780,1750971048604,-460.0,0.00021917,2]
[367933782,1750971048613,-591.98,0.00021917,2]
[367933784,1750971048622,-460.0,0.00021917,2]
[367933786,1750971048632,-460.0,0.00021917,2]
[367933788,1750971048641,-460.0,0.00021917,2]
[367933790,1750971048650,-151.0,0.00021917,2]
[367933792,1750971048659,-568.71,0.00021917,2]
[367933794,1750971048670,-151.0,0.00021917,2]
[367933796,1750971048679,-460.0,0.00021917,2]
[367933809,1750971048804,-460.0,0.00021917,2]
[367933811,1750971048814,-151.0,0.00021917,2]